[Event "DVM U12w 2024"]
[Site "Bad Homburg"]
[Date "2024.12.28"]
[Round "4"]
[White "Haas, Valentina"]
[Black "Nuzhnaia, Daria"]
[Result "1-0"]
[ECO "D00"]
[WhiteElo "974"]
[BlackElo "831"]
[Annotator "NA RC"]
[PlyCount "69"]
[EventDate "2024.12.23"]
[EventType "team-tourn"]
[EventRounds "7"]
[EventCountry "GER"]
[SourceTitle "playchess.com"]
[Source "ChessBase"]
[SourceQuality "1"]
[TimeControl "40/5400+30:1800+30"]

1. d4 {[%emt 0:00:02]} d5 {[%emt 0:00:13]} 2. e3 {[%emt 0:00:09]} Nf6 {[%emt 0:00:07]} 3. Bd3 {[%emt 0:00:14]} Bg4 {[%emt 0:00:35]} 4. f3 {[%emt 0:00:21]} Bd7 {[%emt 0:00:17]} 5. f4 {[%emt 0:00:13]} Nc6 {[%emt 0:00:16]} 6. c3 {[%emt 0:00:09]} e6 {[%emt 0:00:22]} 7. Nf3 {[%emt 0:00:15]} Be7 {[%emt 0:01:52]} 8. Ne5 {[%emt 0:00:30]} O-O {[%emt 0:00:53]} 9. Nd2 {[%emt 0:00:43]} a6 {[%emt 0:01:57]} 10. O-O {[%emt 0:00:22]} Nxe5 {[%emt 0:01:41]} 11. fxe5 {[%emt 0:00:11]} Ne4 {[%emt 0:00:12]} 12. Nxe4 {[%emt 0:00:19]} dxe4 {[%emt 0:01:32]} 13. Bxe4 {[%emt 0:00:13]} Bb5 {[%emt 0:00:29]} 14. Qh5 {[%emt 0:00:17]} f5 {[%emt 0:01:21]} 15. Bxb7 {[%emt 0:01:40]} Bxf1 {[%emt 0:00:30]} 16. Bxa8 {[%emt 0:00:09]} Qxa8 {[%emt 0:01:57]} 17. Kxf1 {[%emt 0:00:09]} g6 {[%emt 0:00:48]} 18. Qf3 {[%emt 0:00:24]} Qxf3+ {[%emt 0:01:21]} 19. gxf3 {[%emt 0:00:10]} g5 {[%emt 0:00:41]} 20. Ke2 {[%emt 0:01:01]} f4 {[%emt 0:05:05]} 21. exf4 {[%emt 0:00:20]} gxf4 {[%emt 0:00:11]} 22. Bd2 {[%emt 0:00:11]} Kg7 {[%emt 0:00:24]} 23. Rg1+ {[%emt 0:00:11]} Kh6 {[%emt 0:00:15]} 24. Rg4 {[%emt 0:00:46]} Bg5 {[%emt 0:01:00]} 25. h4 {[%emt 0:00:22]} Be7 {[%emt 0:04:00]} 26. Rxf4 {[%emt 0:00:35]} Rxf4 {[%emt 0:00:25]} 27. Bxf4+ {[%emt 0:00:09]} Kh5 {[%emt 0:00:55]} 28. Bg3 {[%emt 0:00:36]} Bxh4 {[%emt 0:00:30]} 29. Bxh4 {[%emt 0:00:09]} Kxh4 {[%emt 0:00:11]} 30. Kf2 {[%emt 0:00:07]} Kh3 {[%emt 0:00:06]} 31. b4 {[%emt 0:00:17]} h5 {[%emt 0:00:10]} 32. c4 {[%emt 0:00:12]} h4 {[%emt 0:05:10]} 33. d5 {[%emt 0:00:23]} exd5 {[%emt 0:00:57]} 34. cxd5 {[%emt 0:00:14]} Kh2 {[%emt 0:00:39]} 35. e6 {[%emt 0:00:06]} 1-0

[Event "DVM U12w 2024"]
[Site "Bad Homburg"]
[Date "2024.12.28"]
[Round "4"]
[White "Khachaturyan, Viktoria"]
[Black "Gelbach, Amelia"]
[Result "1-0"]
[ECO "B20"]
[WhiteElo "966"]
[BlackElo "809"]
[Annotator "NA RC"]
[PlyCount "49"]
[EventDate "2024.12.23"]
[EventType "team-tourn"]
[EventRounds "7"]
[EventCountry "GER"]
[SourceTitle "playchess.com"]
[Source "ChessBase"]
[SourceQuality "1"]
[TimeControl "40/5400+30:1800+30"]

1. e4 {[%emt 0:00:02]} c5 {[%emt 0:00:10]} 2. Bc4 {[%emt 0:00:34]} e6 {[%emt 0:00:32]} 3. d4 {[%emt 0:00:30]} cxd4 {[%emt 0:00:47]} 4. Qxd4 {[%emt 0:00:11]} Nc6 {[%emt 0:00:44]} 5. Qd1 {[%emt 0:00:38]} Nf6 {[%emt 0:00:23]} 6. Nc3 {[%emt 0:00:18]} Bb4 {[%emt 0:00:26]} 7. Qe2 {[%emt 0:00:40]} O-O {[%emt 0:00:47]} 8. Nf3 {[%emt 0:00:45]} Re8 {[%emt 0:00:38]} 9. Bg5 {[%emt 0:00:21]} d5 {[%emt 0:00:30]} 10. Bd3 {[%emt 0:00:34]} dxe4 {[%emt 0:00:50]} 11. Bxe4 {[%emt 0:00:21]} h6 {[%emt 0:03:31]} 12. Bh4 {[%emt 0:00:15]} Qd7 {[%emt 0:00:58]} 13. Rd1 {[%emt 0:00:22]} Qc7 {[%emt 0:00:20]} 14. Bxf6 {[%emt 0:00:14]} gxf6 {[%emt 0:00:36]} 15. O-O {[%emt 0:00:23]} Bd6 {[%emt 0:01:55]} 16. g3 {[%emt 0:00:23]} Ne7 {[%emt 0:00:54]} 17. Qe3 {[%emt 0:02:14]} Rd8 {[%emt 0:05:28]} 18. Qxh6 {[%emt 0:00:15]} e5 {[%emt 0:01:32]} 19. Qh7+ {[%emt 0:01:23]} Kf8 {[%emt 0:00:20]} 20. Nb5 {[%emt 0:03:34]} Qb6 {[%emt 0:02:11]} 21. c4 {[%emt 0:03:25]} Bg4 {[%emt 0:00:43]} 22. Qh6+ {[%emt 0:01:42]} Ke8 {[%emt 0:00:23]} 23. Qh8+ {[%emt 0:00:39]} Kd7 {[%emt 0:00:24]} 24. Qxf6 {[%emt 0:00:21]} Rh8 {[%emt 0:01:45]} 25. Rxd6+ {[%emt 0:00:19]} 1-0

[Event "DVM U12w 2024"]
[Site "Bad Homburg"]
[Date "2024.12.28"]
[Round "4"]
[White "Wang, Lexin Selina"]
[Black "Daaboul, Ulla"]
[Result "0-1"]
[ECO "B30"]
[WhiteElo "920"]
[BlackElo "787"]
[Annotator "NA RC"]
[PlyCount "126"]
[EventDate "2024.12.23"]
[EventType "team-tourn"]
[EventRounds "7"]
[EventCountry "GER"]
[SourceTitle "playchess.com"]
[Source "ChessBase"]
[SourceQuality "1"]
[TimeControl "40/5400+30:1800+30"]

1. e4 {[%emt 0:00:02]} c5 {[%emt 0:00:07]} 2. Nf3 {[%emt 0:00:09]} Nc6 {[%emt 0:00:03]} 3. Bc4 {[%emt 0:00:09]} d6 {[%emt 0:00:08]} 4. Nc3 {[%emt 0:00:28]} g6 {[%emt 0:00:06]} 5. h3 {[%emt 0:00:36]} Bg7 {[%emt 0:00:06]} 6. d3 {[%emt 0:01:08]} Nf6 {[%emt 0:00:19]} 7. d4 {[%emt 0:01:01]} cxd4 {[%emt 0:00:17]} 8. Nxd4 {[%emt 0:00:08]} Bd7 {[%emt 0:00:55]} 9. O-O {[%emt 0:00:44]} O-O {[%emt 0:00:00]} 10. Re1 {[%emt 0:10:16]} Ne5 {[%emt 0:00:00]} 11. Bf4 {[%emt 0:05:11]} Nxc4 {[%emt 0:00:41]} 12. Nf3 {[%emt 0:01:43]} Nxb2 {[%emt 0:00:32]} 13. Qb1 {[%emt 0:00:50]} Nc4 {[%emt 0:00:26]} 14. Qxb7 {[%emt 0:00:31]} Qa5 {[%emt 0:00:34]} 15. Qb3 {[%emt 0:03:11]} Bb5 {[%emt 0:00:37]} 16. Qxb5 {[%emt 0:00:34]} Qxc3 {[%emt 0:00:24]} 17. Qb3 {[%emt 0:01:46]} Qxb3 {[%emt 0:00:26]} 18. axb3 {[%emt 0:00:24]} Nb6 {[%emt 0:01:09]} 19. Ra6 {[%emt 0:08:46]} d5 {[%emt 0:00:46]} 20. e5 {[%emt 0:03:55]} Nh5 {[%emt 0:00:46]} 21. Be3 {[%emt 0:01:26]} Nd7 {[%emt 0:02:21]} 22. Bd4 {[%emt 0:02:02]} Nf4 {[%emt 0:01:08]} 23. Rxa7 {[%emt 0:01:14]} Rxa7 {[%emt 0:00:12]} 24. Bxa7 {[%emt 0:00:12]} Ra8 {[%emt 0:00:25]} 25. Be3 {[%emt 0:02:29]} Nxe5 {[%emt 0:00:13]} 26. Bxf4 {[%emt 0:00:14]} Nxf3+ {[%emt 0:00:09]} 27. gxf3 {[%emt 0:00:11]} Bc3 {[%emt 0:00:21]} 28. Rxe7 {[%emt 0:00:21]} Ra1+ {[%emt 0:01:00]} 29. Kg2 {[%emt 0:00:12]} Ra2 {[%emt 0:00:37]} 30. Bh6 {[%emt 0:00:09]} Ra8 {[%emt 0:00:33]} 31. Rc7 {[%emt 0:01:54]} Be5 {[%emt 0:00:48]} 32. Re7 {[%emt 0:01:05]} Bf6 {[%emt 0:00:34]} 33. Rd7 {[%emt 0:01:42]} d4 {[%emt 0:00:53]} 34. b4 {[%emt 0:01:01]} Be5 {[%emt 0:01:11]} 35. b5 {[%emt 0:00:30]} f5 {[%emt 0:00:20]} 36. b6 {[%emt 0:00:45]} Ra2 {[%emt 0:00:35]} 37. Rd8+ {[%emt 0:00:36]} Kf7 {[%emt 0:00:16]} 38. b7 {[%emt 0:01:29]} Rb2 {[%emt 0:00:19]} 39. Rd7+ {[%emt 0:03:37]} Ke6 {[%emt 0:00:12]} 40. Rxh7 {[%emt 0:00:16]} Rxc2 {[%emt 0:00:16]} 41. Kf1 {[%emt 0:33:43]} d3 {[%emt 0:30:30]} 42. Bg7 {[%emt 0:02:33]} Rc1+ {[%emt 0:00:58]} 43. Kg2 {[%emt 0:01:13]} Bd6 {[%emt 0:01:07]} 44. Rh8 {[%emt 0:01:38]} Rb1 {[%emt 0:00:09]} 45. Re8+ {[%emt 0:02:57]} Kd7 {[%emt 0:00:20]} 46. Re3 {[%emt 0:11:16]} d2 {[%emt 0:00:14]} 47. Rd3 {[%emt 0:00:33]} d1=Q {[%emt 0:00:21]} 48. Rxd1 {[%emt 0:00:23]} Rxd1 {[%emt 0:01:06]} 49. Bh6 {[%emt 0:02:33]} Kc7 {[%emt 0:00:24]} 50. f4 {[%emt 0:01:42]} Kxb7 {[%emt 0:00:16]} 51. h4 {[%emt 0:00:54]} Bc5 {[%emt 0:00:54]} 52. Kf3 {[%emt 0:03:02]} Rd2 {[%emt 0:00:49]} 53. Bg7 {[%emt 0:00:28]} Bxf2 {[%emt 0:01:42]} 54. h5 {[%emt 0:00:24]} gxh5 {[%emt 0:00:13]} 55. Bc3 {[%emt 0:00:51]} Rd3+ {[%emt 0:00:43]} 56. Ke2 {[%emt 0:00:08]} Rxc3 {[%emt 0:00:11]} 57. Kxf2 {[%emt 0:00:07]} Rc7 {[%emt 0:00:25]} 58. Ke3 {[%emt 0:00:09]} Rh7 {[%emt 0:00:21]} 59. Kd4 {[%emt 0:00:26]} h4 {[%emt 0:00:18]} 60. Ke5 {[%emt 0:00:08]} h3 {[%emt 0:00:27]} 61. Kxf5 {[%emt 0:00:10]} h2 {[%emt 0:00:10]} 62. Kg6 {[%emt 0:00:14]} h1=Q {[%emt 0:00:14]} 63. f5 {[%emt 0:00:06]} Qh6# {[%emt 0:00:17]} 0-1

[Event "DVM U12w 2024"]
[Site "Bad Homburg"]
[Date "2024.12.28"]
[Round "4"]
[White "Schindler, Mailin"]
[Black "Frank, Elisa"]
[Result "1-0"]
[ECO "C50"]
[WhiteElo "884"]
[BlackElo "801"]
[Annotator "NA RC"]
[PlyCount "25"]
[EventDate "2024.12.23"]
[EventType "team-tourn"]
[EventRounds "7"]
[EventCountry "GER"]
[SourceTitle "playchess.com"]
[Source "ChessBase"]
[SourceQuality "1"]
[TimeControl "40/5400+30:1800+30"]

1. e4 {[%emt 0:00:03]} e5 {[%emt 0:00:02]} 2. Nf3 {[%emt 0:00:04]} Nc6 {[%emt 0:00:04]} 3. Bc4 {[%emt 0:00:10]} Bc5 {[%emt 0:00:20]} 4. Nc3 {[%emt 0:00:07]} Nge7 {[%emt 0:00:14]} 5. d3 {[%emt 0:00:09]} O-O {[%emt 0:00:07]} 6. Be3 {[%emt 0:00:17]} Bxe3 {[%emt 0:00:19]} 7. fxe3 {[%emt 0:00:08]} d6 {[%emt 0:00:20]} 8. O-O {[%emt 0:00:08]} Bg4 {[%emt 0:00:47]} 9. h3 {[%emt 0:00:40]} Be6 {[%emt 0:00:43]} 10. Ng5 {[%emt 0:00:20]} Bxc4 {[%emt 0:00:38]} 11. dxc4 {[%emt 0:00:11]} Ng6 {[%emt 0:00:45]} 12. Qh5 {[%emt 0:00:23]} f6 {[%emt 0:00:33]} 13. Qxh7# {[%emt 0:00:17]} 1-0

[Event "DVM U12w 2024"]
[Site "Bad Homburg"]
[Date "2024.12.28"]
[Round "4"]
[White "He, Siqi"]
[Black "Yamshchikova, Oleksandra"]
[Result "0-1"]
[ECO "C50"]
[WhiteElo "870"]
[BlackElo "974"]
[Annotator "NA RC"]
[PlyCount "119"]
[EventDate "2024.12.23"]
[EventType "team-tourn"]
[EventRounds "7"]
[EventCountry "GER"]
[SourceTitle "playchess.com"]
[Source "ChessBase"]
[SourceQuality "1"]
[TimeControl "40/5400+30:1800+30"]

1. e4 {[%emt 0:00:04]} e5 {[%emt 0:00:04]} 2. Nf3 {[%emt 0:00:06]} Nc6 {[%emt 0:00:07]} 3. Bc4 {[%emt 0:00:07]} Bc5 {[%emt 0:00:08]} 4. d3 {[%emt 0:00:05]} h6 {[%emt 0:00:16]} 5. Nc3 {[%emt 0:00:07]} Nf6 {[%emt 0:00:10]} 6. O-O {[%emt 0:00:06]} O-O {[%emt 0:00:07]} 7. a3 {[%emt 0:00:12]} d6 {[%emt 0:00:06]} 8. h3 {[%emt 0:00:05]} Be6 {[%emt 0:00:05]} 9. Bb3 {[%emt 0:00:07]} Re8 {[%emt 0:00:53]} 10. Ba4 {[%emt 0:00:11]} a6 {[%emt 0:00:33]} 11. Be3 {[%emt 0:00:15]} Ba7 {[%emt 0:00:14]} 12. d4 {[%emt 0:00:20]} exd4 {[%emt 0:00:18]} 13. Bxd4 {[%emt 0:00:10]} b5 {[%emt 0:00:29]} 14. Bb3 {[%emt 0:00:12]} d5 15. exd5 {[%emt 0:00:45]} Bxd4 {[%emt 0:06:40]} 16. Nxd4 {[%emt 0:00:26]} Nxd4 {[%emt 0:00:34]} 17. dxe6 {[%emt 0:00:19]} Nxb3 {[%emt 0:01:06]} 18. cxb3 {[%emt 0:02:08]} Qxd1 {[%emt 0:01:46]} 19. Rfxd1 {[%emt 0:00:00]} Rxe6 {[%emt 0:00:20]} 20. a4 {[%emt 0:00:00]} b4 {[%emt 0:00:25]} 21. Nd5 {[%emt 0:00:00]} Nxd5 {[%emt 0:00:27]} 22. Rxd5 {[%emt 0:00:00]} c6 {[%emt 0:00:39]} 23. Rd4 {[%emt 0:01:01]} a5 {[%emt 0:00:08]} 24. Rad1 {[%emt 0:00:30]} Rae8 {[%emt 0:00:56]} 25. Rd8 {[%emt 0:00:23]} R6e7 {[%emt 0:00:45]} 26. Rxe8+ {[%emt 0:00:33]} Rxe8 {[%emt 0:00:12]} 27. Rd6 {[%emt 0:00:12]} Re1+ {[%emt 0:00:38]} 28. Kh2 {[%emt 0:05:54]} Rc1 {[%emt 0:05:52]} 29. Rd8+ {[%emt 0:00:00]} Kh7 {[%emt 0:00:14]} 30. Ra8 {[%emt 0:00:00]} Rc5 {[%emt 0:00:13]} 31. g4 {[%emt 0:00:00]} Rc2 {[%emt 0:01:29]} 32. Rxa5 {[%emt 0:00:00]} Rxf2+ {[%emt 0:00:16]} 33. Kg3 {[%emt 0:00:00]} Rxb2 {[%emt 0:00:45]} 34. Ra6 {[%emt 0:00:00]} Rxb3+ {[%emt 0:00:18]} 35. Kf2 {[%emt 0:00:00]} Rb2+ {[%emt 0:00:09]} 36. Kg3 {[%emt 0:00:00]} Rc2 {[%emt 0:00:54]} 37. Ra8 {[%emt 0:00:00]} b3 {[%emt 0:00:09]} 38. a5 {[%emt 0:00:00]} b2 {[%emt 0:00:12]} 39. Rb8 {[%emt 0:00:00]} Rc3+ {[%emt 0:00:16]} 40. Kf2 {[%emt 0:00:00]} Rc2+ {[%emt 0:00:15]} 41. Kg3 {[%emt 0:30:00]} Rc3+ {[%emt 0:30:16]} 42. Kf2 {[%emt 0:00:10]} Ra3 {[%emt 0:00:48]} 43. Rxb2 {[%emt 0:00:13]} Rxa5 {[%emt 0:00:31]} 44. Ke3 {[%emt 0:00:19]} Re5+ {[%emt 0:00:41]} 45. Kd4 {[%emt 0:00:14]} Rd5+ {[%emt 0:00:21]} 46. Kc4 {[%emt 0:00:21]} Ra5 {[%emt 0:02:12]} 47. Kb4 {[%emt 0:00:19]} Rb5+ {[%emt 0:00:10]} 48. Kc3 {[%emt 0:00:10]} Rxb2 {[%emt 0:00:10]} 49. Kxb2 {[%emt 0:00:10]} h5 {[%emt 0:01:27]} 50. gxh5 {[%emt 0:02:18]} Kh6 {[%emt 0:00:00]} 51. Kc3 {[%emt 0:00:12]} Kxh5 {[%emt 0:00:00]} 52. Kd4 {[%emt 0:00:11]} Kh4 {[%emt 0:00:00]} 53. Ke5 {[%emt 0:00:00]} Kxh3 {[%emt 0:00:09]} 54. Kd6 {[%emt 0:00:22]} g5 {[%emt 0:00:30]} 55. Ke5 {[%emt 0:00:30]} g4 {[%emt 0:00:30]} 56. Kf4 {[%emt 0:00:30]} g3 {[%emt 0:00:30]} 57. Kf3 {[%emt 0:00:30]} Kh2 {[%emt 0:00:00]} 58. Ke2 {[%emt 0:00:00]} g2 {[%emt 0:00:00]} 59. Ke3 {[%emt 0:00:00]} g1=Q+ {[%emt 0:00:00]} 60. Kf3 {[%emt 0:00:00]} 0-1

[Event "DVM U12w 2024"]
[Site "Bad Homburg"]
[Date "2024.12.28"]
[Round "4"]
[White "Dennhardt, Mira"]
[Black "Winkler, Helena"]
[Result "0-1"]
[ECO "C42"]
[WhiteElo "830"]
[BlackElo "778"]
[Annotator "NA RC"]
[PlyCount "34"]
[EventDate "2024.12.23"]
[EventType "team-tourn"]
[EventRounds "7"]
[EventCountry "GER"]
[SourceTitle "playchess.com"]
[Source "ChessBase"]
[SourceQuality "1"]
[TimeControl "40/5400+30:1800+30"]

1. e4 {[%emt 0:00:03]} e5 {[%emt 0:00:08]} 2. Nf3 {[%emt 0:00:25]} Nf6 {[%emt 0:00:09]} 3. d3 {[%emt 0:00:11]} d6 {[%emt 0:00:05]} 4. Nc3 {[%emt 0:00:19]} Be7 {[%emt 0:00:13]} 5. Be2 {[%emt 0:00:18]} O-O {[%emt 0:00:20]} 6. O-O {[%emt 0:00:05]} Nc6 {[%emt 0:00:08]} 7. g3 {[%emt 0:01:10]} Bh3 {[%emt 0:00:06]} 8. Re1 {[%emt 0:00:00]} Nd4 {[%emt 0:00:22]} 9. Nxd4 {[%emt 0:00:11]} exd4 {[%emt 0:00:10]} 10. Nb5 {[%emt 0:00:56]} c5 {[%emt 0:00:25]} 11. Bf4 {[%emt 0:01:24]} a6 {[%emt 0:00:13]} 12. Na3 {[%emt 0:01:30]} Nh5 {[%emt 0:00:31]} 13. Bxh5 {[%emt 0:00:27]} g6 {[%emt 0:00:23]} 14. Bf3 {[%emt 0:00:29]} b5 {[%emt 0:00:26]} 15. e5 {[%emt 0:00:58]} b4 {[%emt 0:00:13]} 16. Bxa8 {[%emt 0:00:17]} Qxa8 {[%emt 0:00:13]} 17. exd6 {[%emt 0:00:32]} Qg2# {[%emt 0:00:08]} 0-1

[Event "DVM U12w 2024"]
[Site "Bad Homburg"]
[Date "2024.12.28"]
[Round "4"]
[White "Henn, Lena"]
[Black "Rempel, Katharina"]
[Result "1-0"]
[ECO "C53"]
[WhiteElo "808"]
[BlackElo "851"]
[Annotator "NA RC"]
[PlyCount "45"]
[EventDate "2024.12.23"]
[EventType "team-tourn"]
[EventRounds "7"]
[EventCountry "GER"]
[SourceTitle "playchess.com"]
[Source "ChessBase"]
[SourceQuality "1"]
[TimeControl "40/5400+30:1800+30"]

1. e4 {[%emt 0:00:03]} e5 {[%emt 0:00:06]} 2. Nf3 {[%emt 0:00:03]} Nc6 {[%emt 0:00:04]} 3. d4 {[%emt 0:00:04]} exd4 {[%emt 0:00:26]} 4. Bc4 {[%emt 0:00:05]} h6 {[%emt 0:01:06]} 5. c3 {[%emt 0:00:42]} Bc5 {[%emt 0:03:19]} 6. cxd4 {[%emt 0:01:09]} Nxd4 {[%emt 0:01:48]} 7. Nxd4 {[%emt 0:00:07]} Bxd4 {[%emt 0:01:27]} 8. Qxd4 {[%emt 0:00:08]} d6 {[%emt 0:01:01]} 9. Qxg7 {[%emt 0:00:32]} Qf6 {[%emt 0:01:31]} 10. Qg3 {[%emt 0:02:29]} Qd4 {[%emt 0:05:08]} 11. Nd2 {[%emt 0:01:47]} Nf6 {[%emt 0:02:22]} 12. Qg7 {[%emt 0:01:04]} Rh7 {[%emt 0:01:18]} 13. Bxf7+ {[%emt 0:01:08]} Ke7 {[%emt 0:01:34]} 14. Bg6+ {[%emt 0:00:35]} Rxg7 {[%emt 0:00:30]} 15. Nf3 {[%emt 0:01:38]} Qd3 {[%emt 0:03:24]} 16. Nh4 {[%emt 0:01:49]} Nxe4 {[%emt 0:02:12]} 17. Bxh6 {[%emt 0:03:43]} Rg8 {[%emt 0:02:15]} 18. f3 {[%emt 0:02:29]} d5 {[%emt 0:04:04]} 19. fxe4 {[%emt 0:00:42]} dxe4 {[%emt 0:00:21]} 20. Rf1 {[%emt 0:01:44]} Be6 {[%emt 0:00:49]} 21. Rd1 {[%emt 0:00:54]} Qb5 {[%emt 0:01:41]} 22. a4 {[%emt 0:01:29]} Qxa4 {[%emt 0:00:46]} 23. Bg5# {[%emt 0:00:39]} 1-0

[Event "DVM U12w 2024"]
[Site "Bad Homburg"]
[Date "2024.12.28"]
[Round "4"]
[White "Augustin, Luisa"]
[Black "Naz Öksüz, Meryem"]
[Result "0-1"]
[ECO "B01"]
[WhiteElo "797"]
[BlackElo "1296"]
[Annotator "NA"]
[PlyCount "120"]
[EventDate "2024.12.23"]
[EventType "team-tourn"]
[EventRounds "7"]
[EventCountry "GER"]
[SourceTitle "playchess.com"]
[Source "ChessBase"]
[SourceQuality "1"]
[TimeControl "40/5400+30:1800+30"]

1. e4 {[%emt 0:00:03]} d5 {[%emt 0:00:43]} 2. exd5 {[%emt 0:00:11]} Qxd5 {[%emt 0:00:12]} 3. Nc3 {[%emt 0:00:09]} Qa5 {[%emt 0:00:23]} 4. Nf3 {[%emt 0:00:48]} Bf5 {[%emt 0:00:43]} 5. Bd3 {[%emt 0:00:38]} Bxd3 {[%emt 0:00:13]} 6. cxd3 {[%emt 0:00:08]} c6 {[%emt 0:01:10]} 7. O-O {[%emt 0:00:36]} Nf6 {[%emt 0:00:20]} 8. Ne4 {[%emt 0:01:33]} Nxe4 {[%emt 0:00:34]} 9. dxe4 {[%emt 0:00:05]} Qb4 {[%emt 0:00:20]} 10. Re1 {[%emt 0:01:33]} e6 {[%emt 0:01:04]} 11. d4 {[%emt 0:00:58]} Nd7 {[%emt 0:01:15]} 12. Qd2 {[%emt 0:00:33]} Qxd2 {[%emt 0:00:11]} 13. Bxd2 {[%emt 0:00:12]} Be7 {[%emt 0:00:28]} 14. d5 {[%emt 0:01:17]} Nc5 {[%emt 0:00:51]} 15. dxc6 {[%emt 0:00:43]} bxc6 {[%emt 0:00:21]} 16. Rac1 {[%emt 0:00:31]} Nd3 {[%emt 0:00:17]} 17. Rxc6 {[%emt 0:00:33]} Nxe1 {[%emt 0:03:25]} 18. Bxe1 {[%emt 0:00:03]} O-O {[%emt 0:00:21]} 19. Ne5 {[%emt 0:02:02]} f6 {[%emt 0:00:34]} 20. Nd7 {[%emt 0:00:24]} Rfd8 {[%emt 0:00:54]} 21. Rc7 {[%emt 0:00:34]} Bd6 {[%emt 0:01:45]} 22. Rb7 {[%emt 0:01:04]} Rac8 {[%emt 0:01:41]} 23. g3 {[%emt 0:00:57]} Rc7 {[%emt 0:01:16]} 24. Rxc7 {[%emt 0:00:30]} Bxc7 {[%emt 0:00:21]} 25. Nc5 {[%emt 0:00:30]} Rd1 {[%emt 0:00:41]} 26. Kf1 {[%emt 0:00:12]} Ba5 {[%emt 0:00:28]} 27. Nd3 {[%emt 0:00:33]} Bxe1 {[%emt 0:00:41]} 28. Nxe1 {[%emt 0:00:11]} Ra1 {[%emt 0:00:11]} 29. a3 {[%emt 0:00:12]} Kf7 {[%emt 0:00:08]} 30. Ke2 {[%emt 0:00:12]} f5 {[%emt 0:00:12]} 31. exf5 {[%emt 0:00:21]} exf5 {[%emt 0:00:12]} 32. f4 {[%emt 0:00:10]} Ra2 {[%emt 0:00:09]} 33. Nd3 {[%emt 0:00:08]} Ke6 {[%emt 0:00:13]} 34. Ke3 {[%emt 0:00:09]} Ra1 {[%emt 0:01:25]} 35. Nc5+ {[%emt 0:00:32]} Kd5 {[%emt 0:00:27]} 36. Nd3 {[%emt 0:00:17]} Rh1 {[%emt 0:00:35]} 37. h4 {[%emt 0:00:05]} Rh3 {[%emt 0:00:24]} 38. Kf3 {[%emt 0:00:30]} Rh1 {[%emt 0:01:16]} 39. Ke3 {[%emt 0:01:05]} Rg1 {[%emt 0:01:05]} 40. Kf3 {[%emt 0:00:13]} Kd4 {[%emt 0:00:48]} 41. Nf2 {[%emt 0:30:16]} Rb1 {[%emt 0:30:32]} 42. b4 {[%emt 0:00:12]} Rb3+ {[%emt 0:00:17]} 43. Ke2 {[%emt 0:00:08]} Rxa3 {[%emt 0:00:00]} 44. g4 {[%emt 0:00:09]} Ra2+ {[%emt 0:00:00]} 45. Kf3 {[%emt 0:00:10]} fxg4+ {[%emt 0:00:00]} 46. Nxg4 {[%emt 0:00:10]} Ra3+ {[%emt 0:00:00]} 47. Kg2 {[%emt 0:00:27]} Ke4 {[%emt 0:00:00]} 48. Nf2+ {[%emt 0:00:28]} Kxf4 {[%emt 0:00:00]} 49. b5 {[%emt 0:00:11]} Rb3 {[%emt 0:00:53]} 50. Nd1 {[%emt 0:00:24]} Rxb5 {[%emt 0:00:18]} 51. Kf2 {[%emt 0:00:22]} a5 {[%emt 0:00:13]} 52. h5 {[%emt 0:00:20]} a4 {[%emt 0:00:09]} 53. Nc3 {[%emt 0:00:31]} Rb2+ {[%emt 0:00:07]} 54. Ke1 {[%emt 0:00:22]} a3 {[%emt 0:00:12]} 55. Kd1 {[%emt 0:00:09]} a2 {[%emt 0:00:28]} 56. Nxa2 {[%emt 0:00:09]} Rxa2 {[%emt 0:00:06]} 57. h6 {[%emt 0:00:09]} gxh6 {[%emt 0:00:05]} 58. Ke1 {[%emt 0:00:04]} Kf3 {[%emt 0:00:08]} 59. Kd1 {[%emt 0:00:09]} Ke3 {[%emt 0:00:05]} 60. Kc1 {[%emt 0:00:03]} Ra4 {[%emt 0:01:29]} 0-1

[Event "DVM U12w 2024"]
[Site "Bad Homburg"]
[Date "2024.12.28"]
[Round "4"]
[White "Brandt, Thea"]
[Black "Bykov, Sophia"]
[Result "0-1"]
[ECO "C50"]
[WhiteElo "794"]
[BlackElo "1033"]
[Annotator "NA RC"]
[PlyCount "40"]
[EventDate "2024.12.23"]
[EventType "team-tourn"]
[EventRounds "7"]
[EventCountry "GER"]
[SourceTitle "playchess.com"]
[Source "ChessBase"]
[SourceQuality "1"]
[TimeControl "40/5400+30:1800+30"]

1. e4 {[%emt 0:00:03]} e5 {[%emt 0:00:04]} 2. Nf3 {[%emt 0:00:06]} Nc6 {[%emt 0:00:06]} 3. Bc4 {[%emt 0:00:07]} Bc5 {[%emt 0:00:18]} 4. d3 {[%emt 0:00:09]} d6 {[%emt 0:00:24]} 5. O-O {[%emt 0:00:05]} Bg4 {[%emt 0:00:06]} 6. Nc3 {[%emt 0:00:48]} Nd4 {[%emt 0:00:54]} 7. Kh1 {[%emt 0:01:55]} Bxf3 {[%emt 0:00:58]} 8. gxf3 {[%emt 0:00:09]} Qf6 {[%emt 0:00:54]} 9. Rg1 {[%emt 0:00:07]} Nxf3 {[%emt 0:01:56]} 10. Rg3 {[%emt 0:00:19]} Nh4 {[%emt 0:05:15]} 11. Bg5 {[%emt 0:00:12]} Qxf2 {[%emt 0:04:26]} 12. Bxh4 {[%emt 0:00:30]} Nf6 {[%emt 0:02:58]} 13. Rh3 {[%emt 0:03:02]} Qf4 {[%emt 0:01:33]} 14. Ne2 {[%emt 0:00:20]} Qg4 {[%emt 0:01:54]} 15. Qf1 {[%emt 0:00:52]} O-O-O {[%emt 0:02:13]} 16. Bxf6 {[%emt 0:02:23]} gxf6 {[%emt 0:00:44]} 17. Qxf6 {[%emt 0:00:18]} Qxh3 {[%emt 0:00:48]} 18. Qxf7 {[%emt 0:00:07]} Rhf8 {[%emt 0:01:48]} 19. Be6+ {[%emt 0:00:13]} Kb8 {[%emt 0:00:14]} 20. Qe7 {[%emt 0:02:10]} Qf5 {[%emt 0:02:21]} 0-1